fUST/lending_fUST_20240523
["ID","MTS","AMOUNT","RATE_DAILY","PERIOD"]
[327731762,1716394247029,-500.0,0.00033424,6]
[327731763,1716394247039,-853.56,0.00033424,25]
[327731764,1716394247049,-853.72,0.00033424,25]
[327731765,1716394247059,-1000.0,0.00033424,6]
[327731766,1716394247069,-1265.98,0.00033424,6]
[327731767,1716394247078,-500.0,0.00033424,6]
[327731768,1716394247087,-500.0,0.00033424,6]
[327731769,1716394247097,-673.3,0.00033424,6]
[327731771,1716394247106,-500.0,0.00033424,6]
[327731772,1716394247115,-500.0,0.00033424,6]
[327731774,1716394247125,-500.0,0.00033424,6]
[327731777,1716394247134,-500.0,0.00033424,6]
[327731780,1716394247144,-502.47347847,0.00033424,6]
[327731782,1716394247154,-1857.05,0.00033424,6]
[327731784,1716394247163,-500.0009053,0.00033424,6]
[327731786,1716394247173,-500.0,0.00033424,6]
[327731788,1716394247183,-500.0,0.00033424,6]
[327731789,1716394247192,-500.0,0.00033424,6]
[327731790,1716394247202,-531.82,0.00033424,6]
[327731791,1716394247211,-500.0,0.00033424,6]
[327731792,1716394247221,-500.0,0.00033424,6]
[327731793,1716394247231,-583.92,0.00033424,6]
[327731794,1716394247241,-500.0,0.00033424,6]
[327731795,1716394247251,-500.0,0.00033424,6]
[327731796,1716394247260,-500.0,0.00033424,6]
[327731797,1716394247270,-153.62412299,0.00033424,6]
[327731798,1716394247279,-500.0,0.00033424,6]
[327731799,1716394247289,-500.0,0.00033424,6]
[327731800,1716394247299,-500.0,0.00033424,6]
[327731801,1716394247308,-817.85,0.00033424,6]
[327731802,1716394247319,-209.252363,0.00033424,2]
[327731803,1716394247328,-500.0,0.00033424,6]
[327731804,1716394247338,-209.252363,0.00033424,2]
[327731805,1716394247347,-209.252363,0.00033424,2]
[327731806,1716394247357,-209.252363,0.00033424,2]
[327731807,1716394247368,-209.252363,0.00033424,2]
[327731808,1716394247382,-209.252363,0.00033424,2]
[327731809,1716394247392,-349.03722291,0.00033424,6]
[327731810,1716394247402,-1025.69,0.00033424,6]
[327731811,1716394247411,-209.252363,0.00033424,2]
[327731812,1716394247423,-500.0,0.00033424,6]
[327731813,1716394247433,-209.252363,0.00033424,2]
[327731815,1716394247442,-3884.72,0.00033424,6]
[327731817,1716394247453,-209.252363,0.00033424,2]
[327731818,1716394247462,-209.252363,0.00033424,2]
[327731819,1716394247472,-209.252363,0.00033424,2]
[327731820,1716394247481,-209.252367,0.00033424,2]
[327731821,1716394247491,-5177.66,0.00033424,6]
[327731822,1716394247501,-517.43746695,0.00033424,6]
[327731823,1716394247510,-1589.68,0.00033424,6]
[327731824,1716394247519,-214.37531,0.00033424,2]
[327731825,1716394247529,-214.37531,0.00033424,2]
[327731826,1716394247539,-214.37531,0.00033424,2]
[327731827,1716394247549,-214.37531,0.00033424,2]
[327731828,1716394247559,-214.37531,0.00033424,2]
[327731829,1716394247568,-214.37531,0.00033424,2]
[327731830,1716394247577,-214.37531,0.00033424,2]
[327731831,1716394247587,-214.37531,0.00033424,2]
[327731832,1716394247596,-214.37531,0.00033424,2]
[327731833,1716394247607,-1708.96,0.00033424,6]
[327731834,1716394247618,-214.37531,0.00033424,2]
[327731835,1716394247628,-214.37531,0.00033424,2]
[327731836,1716394247640,-214.375318,0.00033424,2]
[327731837,1716394247649,-500.0,0.00033424,6]
[327731838,1716394247659,-594.77,0.00033424,6]
[327731839,1716394247669,-500.0,0.00033424,6]
[327731840,1716394247678,-1504.15,0.00033424,6]
[327731841,1716394247688,-500.0,0.00033424,6]
[327731842,1716394247697,-308.95456108,0.00033424,6]
[327731843,1716394247706,-1428.69,0.00033424,6]
[327731844,1716394247717,-500.0,0.00033424,6]
[327731845,1716394247726,-500.0,0.00033424,6]
[327731846,1716394247842,-500.0,0.00033424,6]
[327731847,1716394247852,-984.92,0.00033424,6]
[327731848,1716394247862,-611.38,0.00033424,6]
[327731849,1716394247873,-691.37,0.00033424,6]
[327731850,1716394247883,-500.0,0.00033424,2]
[327731851,1716394247896,-500.0,0.00033424,6]
[327731852,1716394247905,-503.30814202,0.00033424,6]
[327731853,1716394247915,-1128.37,0.00033424,6]
[327731854,1716394247924,-500.0,0.00033424,6]
[327731855,1716394247934,-500.0,0.00033424,6]
[327731856,1716394247943,-500.0,0.00033424,6]
[327731857,1716394247952,-500.0,0.00033424,6]
[327731858,1716394247962,-500.0,0.00033424,6]
[327731859,1716394247972,-500.0,0.00033424,6]
[327731860,1716394247982,-500.0,0.00033424,6]
[327731861,1716394247991,-4781.55,0.00033424,6]
[327731862,1716394248001,-837.92,0.00033424,6]
[327731863,1716394248010,-505.003056,0.00033424,6]
[327731864,1716394248021,-2497.91,0.00033424,6]
[327731865,1716394248030,-500.0,0.00033424,6]
[327731866,1716394248039,-500.0,0.00033424,6]
[327731867,1716394248048,-738.28,0.00033424,6]
[327731868,1716394248057,-300.11504717,0.00033424,6]
[327731869,1716394248066,-500.0,0.00033424,6]
[327731870,1716394248075,-500.0,0.00033424,6]
[327731871,1716394248085,-500.0,0.00033424,6]
[327731872,1716394248094,-500.0,0.00033424,6]
[327731873,1716394248103,-789.85,0.00033424,6]
[327731874,1716394248112,-500.0,0.00033424,6]
[327731875,1716394248123,-500.0,0.00033424,6]
[327731876,1716394248133,-500.0,0.00033424,6]
[327731877,1716394248143,-5500.1,0.00033424,6]
[327731878,1716394248153,-965.81,0.00033424,6]
[327731879,1716394248162,-151.0,0.00033424,2]
[327731880,1716394248171,-151.0,0.00033424,2]
[327731881,1716394248181,-151.0,0.00033424,2]
[327731882,1716394248191,-500.0,0.00033424,6]
[327731883,1716394248201,-151.0,0.00033424,2]
[327731884,1716394248213,-151.0,0.00033424,2]
[327731885,1716394248223,-171.502364,0.00033424,2]
[327731886,1716394248233,-500.0,0.00033424,6]
[327731887,1716394248242,-591.15983792,0.00033424,6]
[327731888,1716394248252,-613.18,0.00033424,6]
[327731889,1716394248261,-500.0,0.00033424,6]
[327731890,1716394248271,-500.0,0.00033424,6]
[327731891,1716394248280,-501.66428337,0.00033424,6]
[327731892,1716394248289,-500.0,0.00033424,6]
[327731893,1716394248299,-2282.84,0.00033424,6]
[327731894,1716394248309,-500.0,0.00033424,6]
[327731895,1716394248318,-601.53,0.00033424,6]
[327731896,1716394248328,-542.31,0.00033424,2]
[327731897,1716394248338,-500.0,0.00033424,6]
[327731898,1716394248349,-500.0,0.00033424,6]
[327731899,1716394248359,-2847.95,0.00033424,6]
[327731900,1716394248375,-570.66,0.00033424,6]
[327731901,1716394248384,-464.53527065,0.00033424,6]
[327731902,1716394248407,-66.82472935,0.00033424,6]
[327731903,1716394248419,-531.36,0.00033424,7]
[327731904,1716394248430,-531.36,0.00033424,8]
[327731905,1716394248440,-500.0,0.00033424,6]
[327731906,1716394248449,-531.36,0.00033424,9]
[327731907,1716394248459,-531.36,0.00033424,10]
[327731908,1716394248469,-531.36,0.00033424,11]
[327731909,1716394248479,-531.36,0.00033424,12]
[327731910,1716394248489,-531.36,0.00033424,13]
[327731911,1716394248501,-531.36,0.00033424,14]
[327731912,1716394248514,-500.0,0.00033424,6]
[327731913,1716394248524,-531.36,0.00033424,15]
[327731914,1716394248534,-531.36,0.00033424,16]
[327731915,1716394248543,-531.36,0.00033424,17]
[327731916,1716394248553,-531.36,0.00033424,18]
[327731917,1716394248562,-531.36,0.00033424,19]
[327731918,1716394248572,-531.36,0.00033424,20]
[327731919,1716394248581,-531.36,0.00033424,21]
[327731920,1716394248590,-531.36,0.00033424,22]
[327731921,1716394248600,-531.36,0.00033424,23]
[327731922,1716394248611,-531.36,0.00033424,24]
[327731923,1716394248621,-162.68524601,0.00033424,6]
[327731924,1716394248630,-531.36,0.00033424,25]
[327731925,1716394248639,-500.0,0.00033424,6]
[327731926,1716394248648,-531.36,0.00033424,25]
[327731927,1716394248658,-531.36,0.00033424,25]
[327731928,1716394248667,-502.01641051,0.00033424,25]
[327731929,1716394248681,-29.34358949,0.00033424,25]
[327731930,1716394248690,-531.43662838,0.00033424,25]
[327731931,1716394248700,-458.81932653,0.00033424,6]
[327731932,1716394248709,-805.14,0.00033424,6]
[327731933,1716394248719,-1230.18,0.00033424,6]
[327731934,1716394248729,-500.0,0.00033424,6]
[327731935,1716394248738,-500.0,0.00033424,6]
[327731936,1716394248747,-500.0,0.00033424,6]
[327731937,1716394248757,-837.8,0.00033424,6]
[327731938,1716394248768,-428.07268365,0.00033424,6]
[327731939,1716394248777,-500.0,0.00033424,6]
[327731940,1716394248787,-543.00328898,0.00033424,6]
[327731941,1716394248796,-3103.21,0.00033424,6]
[327731942,1716394248805,-323.426778,0.00033424,2]
[327731943,1716394248816,-323.426778,0.00033424,2]
[327731944,1716394248826,-817.71,0.00033424,6]
[327731945,1716394248835,-716.96,0.00033424,6]
[327731946,1716394248844,-363.43004425,0.00033424,6]
[327731947,1716394248854,-500.0,0.00033424,6]
[327731948,1716394248863,-939.72,0.00033424,6]
[327731949,1716394248875,-500.0,0.00033424,6]
[327731950,1716394248884,-857.53,0.00033424,6]
[327731951,1716394248893,-500.0,0.00033424,6]
[327731952,1716394248903,-1633.17,0.00033424,6]
[327731953,1716394248912,-300.0,0.00033424,6]
[327731954,1716394248922,-1633.17,0.00033424,7]
[327731955,1716394248931,-1633.17,0.00033424,8]
[327731956,1716394248940,-1633.17,0.00033424,9]
[327731957,1716394248949,-1633.17,0.00033424,10]
[327731958,1716394248959,-1633.17,0.00033424,11]
[327731959,1716394248969,-1633.17,0.00033424,12]
[327731960,1716394248979,-1633.17,0.00033424,13]
[327731961,1716394248988,-1633.17,0.00033424,14]
[327731962,1716394248998,-1633.17,0.00033424,15]
[327731963,1716394249007,-500.0,0.00033424,6]
[327731964,1716394249016,-1633.17,0.00033424,16]
[327731965,1716394249026,-1633.17,0.00033424,17]
[327731966,1716394249035,-1633.17,0.00033424,18]
[327731967,1716394249045,-1633.17,0.00033424,19]
[327731968,1716394249055,-1633.17,0.00033424,20]
[327731969,1716394249065,-1633.17,0.00033424,21]
[327731970,1716394249075,-500.0,0.00033424,6]
[327731971,1716394249084,-1633.17,0.00033424,22]
[327731972,1716394249094,-1633.17,0.00033424,23]
[327731973,1716394249104,-1633.17,0.00033424,24]
[327731974,1716394249113,-1633.17,0.00033424,25]
[327731975,1716394249124,-1633.17,0.00033424,25]
[327731976,1716394249133,-1633.17,0.00033424,25]
[327731977,1716394249142,-1633.17,0.00033424,25]
[327731978,1716394249152,-1633.22065593,0.00033424,25]
[327731979,1716394249161,-644.75,0.00033424,6]
[327731980,1716394249170,-501.97139179,0.00033424,6]
[327731981,1716394249180,-500.0,0.00033424,6]
[327731982,1716394249190,-500.0,0.00033424,6]
[327731983,1716394249199,-323.426778,0.00033424,2]
[327731984,1716394249208,-500.0,0.00033424,6]
[327731985,1716394249218,-500.0,0.00033424,6]
[327731986,1716394249228,-500.0,0.00033424,6]
[327731987,1716394249238,-504.09440335,0.00033424,6]
[327731988,1716394249247,-504.12555064,0.00033424,6]
[327731989,1716394249258,-323.426778,0.00033424,2]
[327731990,1716394249267,-323.426778,0.00033424,2]
[327731991,1716394249277,-323.426778,0.00033424,2]
[327731992,1716394249287,-500.0,0.00033424,6]
[327731993,1716394249296,-323.426778,0.00033424,2]
[327731994,1716394249305,-323.426778,0.00033424,2]
[327731995,1716394249315,-323.426778,0.00033424,2]
[327731996,1716394249324,-323.426778,0.00033424,2]
[327731997,1716394249333,-323.426778,0.00033424,2]
[327731998,1716394249344,-323.42678127,0.00033424,2]
[327731999,1716394249353,-672.5,0.00033424,6]
[327732000,1716394249364,-866.72,0.00033424,6]
[327732001,1716394249378,-767.11,0.00033424,6]
[327732002,1716394249388,-500.0,0.00033424,6]
[327732003,1716394249398,-505.27774101,0.00033424,6]
[327732004,1716394249409,-500.0,0.00033424,6]
[327732005,1716394249419,-2375.41,0.00033424,6]
[327732006,1716394249429,-500.0,0.00033424,6]
[327732007,1716394249438,-500.0,0.00033424,6]
[327732008,1716394249449,-542.0051,0.00033424,6]
[327732009,1716394249458,-500.0,0.00033424,6]
[327732010,1716394249467,-500.0,0.00033424,6]
[327732011,1716394249477,-1731.17495891,0.00033424,6]
[327732012,1716394250542,-180.603441,0.00028,2]
[327732013,1716394250552,-180.603441,0.0003,2]
[327732014,1716394250561,-180.603441,0.0003105,2]
[327732015,1716394250571,-180.603441,0.0003107,2]
[327732016,1716394250581,-76.95386637,0.00032923,3]
[327732017,1716394312197,206.21903,0.00024384,2]
[327732050,1716395141178,-527.39256429,0.00020724,4]
[327732051,1716395141197,-7348.32472145,0.00020725,2]
[327732052,1716395349138,-351.64909845,0.000189,2]
[327732053,1716395349159,-1067.16941899,0.00020601,2]
[327732054,1716395365123,-23812.83058101,0.00020601,2]
[327732055,1716395365144,-7651.67527855,0.00020725,2]
[327732056,1716395365166,-2356.55384362,0.00020726,5]
[327732057,1716395365191,-901.79332432,0.00022264,2]
[327732058,1716395365211,-5600.0,0.000223,6]
[327732059,1716395365232,-634.08966622,0.00023377,2]
[327732060,1716395365252,-351.64909845,0.000239,2]
[327732061,1716395365276,-163.129365,0.00024384,2]
[327732062,1716395365297,-195.908078,0.00024384,2]
[327732063,1716395365317,-620.70448331,0.00024546,2]
[327732064,1716395365340,-501.31794574,0.00025,2]
[327732082,1716395401535,16291.4797806,0.00020601,2]
[327732129,1716395438741,-805.32512728,0.00020601,2]
[327732312,1716395442553,-2161.85720909,0.00020601,2]
[327732313,1716395442564,-760.60206914,0.00025,2]
[327732314,1716395442574,-151.0,0.00025801,5]
[327732315,1716395442584,-224.29405658,0.00027992,4]
[327732318,1716395443421,-303.09850771,0.00027992,4]
[327732320,1716395443431,-226.72440612,0.00027993,10]
[327732331,1716395443776,-2559.31220976,0.00027993,10]
[327732332,1716395443786,-351.64909845,0.000289,2]
[327732333,1716395443795,-4250.43869179,0.0003,2]
[327732340,1716395446620,-279.75,0.0003,2]
[327732341,1716395446636,-9799.4,0.0003,2]
[327732377,1716396345122,-788.15159359,0.00020913,2]
[327732453,1716396632183,-658.24540684,0.00020913,2]
[327732456,1716396632196,-13553.60299957,0.00020913,2]
[327732458,1716396632207,-19258.66211697,0.00020913,2]
[327732460,1716396632216,-155.40007447,0.000223,2]
[327732462,1716396632226,-527.39256429,0.00024382,4]
[327732464,1716396632236,-163.129365,0.00024384,2]
[327732466,1716396632245,-186.112674,0.00024384,2]
[327732468,1716396632255,-151.0,0.00025806,5]
[327732470,1716396632264,-177.40494571,0.0002799,11]
[327732566,1716396637836,-954.3652342,0.0002799,11]
[327732569,1716396637849,-2064.06868225,0.0002799,11]
[327732571,1716396637858,-482.99013517,0.0002799,3]
[327732623,1716396642648,-778.11,0.0002799,3]
[327732626,1716396642658,-216.13483558,0.00027999,2]
[327732628,1716396642667,-500.0,0.00027999,2]
[327732630,1716396642676,-500.0,0.00027999,2]
[327732632,1716396642686,-500.0,0.00027999,2]
[327732634,1716396642695,-271.90081033,0.00027999,2]
[327732635,1716396642705,-500.0,0.00027999,2]
[327732637,1716396642714,-500.0,0.00027999,2]
[327732638,1716396642723,-500.0,0.00027999,2]
[327732640,1716396642732,-500.0,0.00027999,2]
[327732642,1716396642742,-500.0,0.00027999,2]
[327732644,1716396642751,-500.0,0.00027999,2]
[327732646,1716396642761,-500.0,0.00027999,2]
[327732648,1716396642771,-500.0,0.00027999,2]
[327732649,1716396642781,-500.0,0.00027999,2]
[327732650,1716396642790,-500.0,0.00027999,2]
[327732651,1716396642800,-500.0,0.00027999,2]
[327732652,1716396642809,-500.0,0.00027999,2]
[327732653,1716396642819,-500.0,0.00027999,2]
[327732654,1716396642829,-500.0,0.00027999,2]
[327732655,1716396642839,-500.0,0.00027999,2]
[327732656,1716396642849,-500.0,0.00027999,2]
[327732657,1716396642859,-500.0,0.00027999,2]
[327732658,1716396642869,-500.0,0.00027999,2]
[327732659,1716396642878,-500.0,0.00027999,2]
[327732660,1716396642888,-500.0,0.00027999,2]
[327732661,1716396642898,-261.96566866,0.00027999,2]
[327732662,1716396642907,-500.0,0.00027999,2]
[327732663,1716396642916,-500.0,0.00027999,2]
[327732664,1716396642926,-500.0,0.00027999,2]
[327732665,1716396642936,-500.0,0.00027999,2]
[327732666,1716396642945,-500.0,0.00027999,2]
[327732667,1716396642954,-450.0,0.00027999,2]
[327732668,1716396642964,-4012.67519857,0.00028,11]
[327732688,1716396646060,-18448.91278364,0.00020913,2]
[327732695,1716396699629,9563.3328996,9.999e-05,2]
[327732703,1716396723685,186.98085169,9.999e-05,2]
[327732708,1716396755152,261.21640449,9.999e-05,2]
[327732711,1716396768103,14988.46984422,9.999e-05,2]
[327732712,1716396768126,4270.19227275,9.999e-05,2]
[327732717,1716396786105,19258.66211697,9.999e-05,2]
[327732718,1716396804117,16434.27022648,9.999e-05,2]
[327732720,1716396836897,154.99766669,9.999e-05,2]
[327732728,1716396929483,772.36964669,9.999e-05,2]
[327732729,1716396930417,1597.91943108,0.00019905,11]
[327732730,1716396932704,11125.91327412,0.00019402,11]
[327732731,1716396959787,194.53180167,9.999e-05,2]
[327732732,1716396964206,1451.19368545,0.0001,2]
[327732733,1716396976495,818.69784794,9.999e-05,2]
[327732734,1716396987517,835.85509789,9.999e-05,2]
[327732735,1716396993567,7184.18225351,0.00019897,11]
[327732736,1716396993726,281.67342529,9.999e-05,2]
[327732740,1716397032394,5187.0112633,0.00018388,2]
[327732741,1716397043332,513.77409641,9.999e-05,2]
[327732742,1716397053425,3592.09112675,0.00019394,11]
[327732743,1716397055969,10396.36502934,0.00019388,11]
[327732746,1716397113149,1796.04556338,0.00019394,11]
[327732750,1716397173632,898.02278169,0.00019377,11]
[327732751,1716397175425,5198.18251467,0.00019372,11]
[327732752,1716397230495,449.01139084,0.00019377,11]
[327732760,1716397273207,250.0,0.00018286,2]
[327732761,1716397276642,518.232438,0.00018286,2]
[327732762,1716397290135,224.50569543,0.00019366,11]
[327732763,1716397292734,2599.09125733,0.00019354,11]
[327732764,1716397312591,24900.0,0.00018272,2]
[327732765,1716397349791,290.5505842,0.00018255,2]
[327732766,1716397353395,224.50569541,0.00019366,11]
[327732798,1716397416392,1299.54562867,0.00019249,11]
[327732830,1716397533031,649.77281433,0.00019232,11]
[327732982,1716397610960,835.85509789,9.999e-05,2]
[327732987,1716397634563,-214.74140224,0.00019212,2]
[327732994,1716397652730,324.88640716,0.00019213,11]
[327733006,1716397755132,-275.02529284,0.00019095,2]
[327733007,1716397755738,371.29108321,9.999e-05,2]
[327733012,1716397766182,-39518.25200605,0.00019094,2]
[327733014,1716397792190,10949.0234625,0.00018094,2]
[327733073,1716397843098,-2679.91725099,0.00019086,2]
[327733074,1716397843108,-7897.30988261,0.00019087,2]
[327733076,1716397843117,-15000.0,0.00019087,2]
[327733078,1716397843127,-2598.5410692,0.00019087,2]
[327733079,1716397843136,-2402.35904651,0.00019088,2]
[327733080,1716397843145,-11060.38935535,0.00019088,2]
[327733081,1716397843156,-1898.47491461,0.00019089,2]
[327733082,1716397843165,-10512.91470053,0.0001909,2]
[327733083,1716397843174,-2108.66986614,0.0001909,2]
[327733084,1716397843184,-289.34259884,0.00019092,2]
[327733085,1716397843193,-14451.88047107,0.00019094,2]
[327733086,1716397843205,-972.0,0.00019094,2]
[327733117,1716397843432,-4480.7723511,0.00019094,2]
[327733119,1716397843442,-9127.69141355,0.00019095,2]
[327733123,1716397843451,-813.84,0.00019098,3]
[327733126,1716397843461,-598.64381025,0.00019111,2]
[327733129,1716397843471,-598.64381023,0.00019112,2]
[327733132,1716397843480,-598.64381023,0.00019112,2]
[327733134,1716397843489,-598.64381023,0.00019113,2]
[327733136,1716397843499,-598.64381023,0.00019113,2]
[327733137,1716397843508,-500.0,0.00019208,2]
[327733138,1716397843517,-500.0,0.00019208,2]
[327733139,1716397843527,-500.0,0.00019208,2]
[327733140,1716397843536,-500.0,0.00019208,2]
[327733141,1716397843546,-500.0,0.00019208,2]
[327733142,1716397843559,-476.46116535,0.00019208,2]
[327733143,1716397843569,-500.0,0.00019208,2]
[327733144,1716397843580,-500.0,0.00019208,2]
[327733146,1716397843606,-500.0,0.00019208,2]
[327733147,1716397843640,-500.0,0.00019208,2]
[327733148,1716397843720,-500.0,0.00019208,2]
[327733149,1716397843838,-500.0,0.00019208,2]
[327733150,1716397843908,-500.0,0.00019208,2]
[327733151,1716397844014,-500.0,0.00019208,2]
[327733152,1716397844109,-500.0,0.00019208,2]
[327733153,1716397844190,-500.0,0.00019208,2]
[327733154,1716397844249,-500.0,0.00019208,2]
[327733155,1716397844276,-500.0,0.00019208,2]
[327733156,1716397844289,-500.0,0.00019208,2]
[327733157,1716397844298,-500.0,0.00019208,2]
[327733158,1716397844308,-500.0,0.00019208,2]
[327733159,1716397844317,-500.0,0.00019208,2]
[327733160,1716397844327,-500.0,0.00019208,2]
[327733161,1716397844336,-500.0,0.00019208,2]
[327733162,1716397844345,-500.0,0.00019208,2]
[327733163,1716397844355,-500.0,0.00019208,2]
[327733164,1716397844364,-337.51978902,0.00019213,2]
[327733165,1716397844378,-186.39835571,0.00019213,2]
[327733166,1716397844387,-901.9621981,0.00019221,2]
[327733167,1716397844397,-281.35371434,0.00019392,2]
[327733168,1716397844405,-42088.86081708,0.00019905,2]
[327733169,1716397844415,-517.43255436,0.0002091,2]
[327733170,1716397844425,-1367.152893,0.0002091,2]
[327733171,1716397844434,-1367.152893,0.0002091,2]
[327733172,1716397844443,-248.175196,0.0002091,2]
[327733173,1716397844453,-236.416856,0.0002091,2]
[327733174,1716397844462,-236.416856,0.0002091,2]
[327733175,1716397844472,-484.59358267,0.00020911,2]
[327733176,1716397844481,-194.21199943,0.00020912,2]
[327733177,1716397844491,-1449.72666987,0.00020912,2]
[327733178,1716397844500,-176.80704,0.00024384,2]
[327733179,1716397844510,-163.129365,0.00024384,2]
[327733180,1716397844520,-5000.0,0.00027397,5]
[327733181,1716397844529,-1082.6430524,0.00027397,5]
[327733182,1716397844736,-3917.3569476,0.00027397,5]
[327733183,1716397844746,-5000.0,0.00027397,5]
[327733184,1716397844756,-5000.0,0.00027397,5]
[327733185,1716397844767,-5000.0,0.00027397,5]
[327733186,1716397844777,-5000.0,0.00027397,5]
[327733187,1716397844786,-5000.0,0.00027397,5]
[327733188,1716397844933,-2400.24821558,0.00027397,5]
[327733189,1716397844954,-451.51601229,0.00027397,5]
[327733190,1716397844967,-545.89534636,0.00027397,5]
[327733191,1716397844979,-603.19372119,0.00027397,5]
[327733192,1716397844990,-518.232438,0.00027429,2]
[327733193,1716397845000,-417.32360569,0.00027756,2]
[327733194,1716397845009,-3234.72925847,0.000278,2]
[327733195,1716397845021,-365.000015,0.000278,2]
[327733264,1716398735150,-598.71164839,0.00020676,2]
[327733320,1716398839111,-442.99764735,0.00020668,2]
[327733332,1716398925609,150.0,0.000189,2]
[327733345,1716398966100,-183.7312369,0.00020569,2]
[327733346,1716398966121,-1102.16488882,0.00020657,2]
[327733347,1716398972094,-15000.0,0.00020656,2]
[327733348,1716398972115,-1898.47491461,0.00020656,2]
[327733349,1716398972134,-2028.62931271,0.00020656,2]
[327733378,1716399033619,-3001.17694816,0.00020652,2]
[327733379,1716399033632,-1869.48495548,0.00020652,2]
[327733380,1716399033644,-2376.67164096,0.00020652,2]
[327733390,1716399039402,-2402.35904651,0.00020651,2]
[327733391,1716399039413,-877.84709013,0.00020652,2]
[327733392,1716399039425,-1277.53607166,0.00020652,2]
[327733393,1716399039436,-3864.78254364,0.00020653,2]
[327733403,1716399043515,-31086.69303935,0.00020653,2]
[327733404,1716399043525,-10512.91470053,0.00020654,2]
[327733405,1716399043535,-2679.91725099,0.00020655,2]
[327733406,1716399043544,-2381.16442622,0.00020655,2]
[327733455,1716399046483,-217.37664298,0.00020655,2]
[327733456,1716399046494,-5868.6805699,0.00020656,2]
[327733457,1716399046503,-2534.09429428,0.00020657,2]
[327733458,1716399046515,-1853.80904924,0.00020657,2]
[327733460,1716399070101,658.40471002,9.999e-05,2]
[327733461,1716399083879,943.04117326,0.00015,2]
[327733462,1716399089996,261.21640449,9.999e-05,2]
[327733463,1716399103064,9563.3328996,9.999e-05,2]
[327733465,1716399118262,135.8229993,0.000137,2]
[327733466,1716399118298,147.90468532,0.000137,2]
[327733475,1716399125171,302.42294018,9.999e-05,2]
[327733478,1716399138089,2108.66986614,0.00015,2]
[327733479,1716399155043,215.77329794,9.999e-05,2]
[327733480,1716399175659,3133.37559336,0.00015,2]
[327733481,1716399175685,13084.84493833,0.00015,2]
[327733482,1716399175709,73.25924891,0.00015,2]
[327733490,1716399513985,203.57815571,0.0002,11]
[327733491,1716399520670,487.94829849,9.999e-05,2]
[327733494,1716399700031,921.42781077,0.00014,2]
[327733496,1716399718037,920.44027629,0.00016944,2]
[327733498,1716399844145,309.79869354,0.00016944,2]
[327733525,1716399954158,-769.20759907,0.00017077,2]
[327733526,1716400041548,1417.41897603,0.00016992,2]
[327733527,1716400071447,244.34289242,0.00016976,2]
[327733528,1716400112749,759.427165,0.00016082,2]
[327733530,1716400153107,-1898.47491461,0.00017069,2]
[327733531,1716400153128,-5624.9564885,0.00017069,2]
[327733532,1716400155115,-29326.51909449,0.00017069,2]
[327733533,1716400155135,-14817.46373282,0.0001707,2]
[327733534,1716400156102,-182.53626718,0.0001707,2]
[327733535,1716400156122,-9743.70710146,0.00017077,2]
[327733536,1716400156141,-968.0612126,0.0001709,2]
[327733537,1716400156158,-160.59096947,0.00017092,2]
[327733538,1716400162114,-2679.91725099,0.00017068,2]
[327733539,1716400162136,-244.34289239,0.00017841,2]
[327733540,1716400162158,-244.34289239,0.00018705,2]
[327733541,1716400162181,-13355.75710719,0.0001884,2]
[327733542,1716400162202,-7897.30988261,0.00018846,2]
[327733543,1716400162224,-11060.38935535,0.00018848,2]
[327733544,1716400162245,-167.21636615,0.000189,2]
[327733545,1716400162266,-318.73,0.0001894,3]
[327733546,1716400162287,-159.37,0.0001894,3]